Workbook

Sheet Full1
B2: Result summary
A4: Species or LCA name | B4: node code | C4: node order | D4: Ancestor? (0/1) | E4: node age (order) | F4: present | G4: gain | H4: loss | I4: percentage gain | J4: percentage loss | K4: log(gain/loss) | L4: gain-loss | N4: Present-HOLOZOA | O4: Present-OPISTO | P4: Present-LECA
A5: Homo sapiens | B5: Hsap | C5: 1 | D5: =IF(E5<2,0,1) -> 0 | E5: 1 | F5: 5914 | G5: 878 | H5: 142 | I5: =G5/F5 -> 0.1484612783 | J5: =H5/F5 -> 0.02401082178 | K5: =LOG(G5/H5) -> 0.7912061715 | L5: =G5-H5 -> 736 | N5: =F5-$F$40 -> 423 | O5: =F5-$F$52 -> 416 | P5: =F5-$F$78 -> 823
A6: Ciona intestinalis | B6: Cint | C6: 2 | D6: =IF(E6<2,0,1) -> 0 | E6: 1 | F6: 4063 | G6: 3 | H6: 1118 | I6: =G6/F6 -> 0.0007383706621 | J6: =H6/F6 -> 0.2751661334 | K6: =LOG(G6/H6) -> -2.571320549 | L6: =G6-H6 -> -1115 | N6: =F6-$F$40 -> -1428 | O6: =F6-$F$52 -> -1435 | P6: =F6-$F$78 -> -1028
A7: Chordata | B7: CHORD | C7: 3 | D7: =IF(E7<2,0,1) -> 1 | E7: 2 | F7: 5178 | G7: 16 | H7: 174 | I7: =G7/F7 -> 0.003089996138 | J7: =H7/F7 -> 0.033603708 | K7: =LOG(G7/H7) -> -1.036429266 | L7: =G7-H7 -> -158 | N7: =F7-$F$40 -> -313 | O7: =F7-$F$52 -> -320 | P7: =F7-$F$78 -> 87
A8: Saccoglossus kowalevskii | B8: Skow | C8: 4 | D8: =IF(E8<2,0,1) -> 0 | E8: 1 | F8: 4840 | G8: 3 | H8: 499 | I8: =G8/F8 -> 0.0006198347107 | J8: =H8/F8 -> 0.1030991736 | K8: =LOG(G8/H8) -> -2.220979291 | L8: =G8-H8 -> -496 | N8: =F8-$F$40 -> -651 | O8: =F8-$F$52 -> -658 | P8: =F8-$F$78 -> -251
A9: Deuterostomia | B9: DEUTERO | C9: 5 | D9: =IF(E9<2,0,1) -> 1 | E9: 3 | F9: 5336 | G9: 63 | H9: 130 | I9: =G9/F9 -> 0.0118065967 | J9: =H9/F9 -> 0.02436281859 | K9: =LOG(G9/H9) -> -0.3146028029 | L9: =G9-H9 -> -67 | N9: =F9-$F$40 -> -155 | O9: =F9-$F$52 -> -162 | P9: =F9-$F$78 -> 245
A10: Drosophila melanogaster | B10: Dmel | C10: 6 | D10: =IF(E10<2,0,1) -> 0 | E10: 1 | F10: 4314 | G10: 124 | H10: 854 | I10: =G10/F10 -> 0.02874362541 | J10: =H10/F10 -> 0.1979601298 | K10: =LOG(G10/H10) -> -0.8380361855 | L10: =G10-H10 -> -730 | N10: =F10-$F$40 -> -1177 | O10: =F10-$F$52 -> -1184 | P10: =F10-$F$78 -> -777
A11: Lottia gigantea | B11: Lgig | C11: 7 | D11: =IF(E11<2,0,1) -> 0 | E11: 1 | F11: 4739 | G11: 8 | H11: 313 | I11: =G11/F11 -> 0.001688119857 | J11: =H11/F11 -> 0.06604768939 | K11: =LOG(G11/H11) -> -1.592454351 | L11: =G11-H11 -> -305 | N11: =F11-$F$40 -> -752 | O11: =F11-$F$52 -> -759 | P11: =F11-$F$78 -> -352
A12: Protostomia | B12: PROTOS | C12: 8 | D12: =IF(E12<2,0,1) -> 1 | E12: 3 | F12: 5044 | G12: 5 | H12: 364 | I12: =G12/F12 -> 0.0009912767645 | J12: =H12/F12 -> 0.07216494845 | K12: =LOG(G12/H12) -> -1.862131379 | L12: =G12-H12 -> -359 | N12: =F12-$F$40 -> -447 | O12: =F12-$F$52 -> -454 | P12: =F12-$F$78 -> -47
A13: Bilateria | B13: BILATERIA | C13: 9 | D13: =IF(E13<2,0,1) -> 1 | E13: 4 | F13: 5403 | G13: 137 | H13: 261 | I13: =G13/F13 -> 0.02535628355 | J13: =H13/F13 -> 0.04830649639 | K13: =LOG(G13/H13) -> -0.2799199402 | L13: =G13-H13 -> -124 | N13: =F13-$F$40 -> -88 | O13: =F13-$F$52 -> -95 | P13: =F13-$F$78 -> 312
A14: Nematostella vectensis | B14: Nvec | C14: 10 | D14: =IF(E14<2,0,1) -> 0 | E14: 1 | F14: 4705 | G14: 91 | H14: 521 | I14: =G14/F14 -> 0.01934112646 | J14: =H14/F14 -> 0.1107332625 | K14: =LOG(G14/H14) -> -0.757796331 | L14: =G14-H14 -> -430 | N14: =F14-$F$40 -> -786 | O14: =F14-$F$52 -> -793 | P14: =F14-$F$78 -> -386
A15: Aiptasia sp. | B15: Aipt | C15: 11 | D15: =IF(E15<2,0,1) -> 0 | E15: 1 | F15: 4781 | G15: 35 | H15: 389 | I15: =G15/F15 -> 0.007320644217 | J15: =H15/F15 -> 0.08136373144 | K15: =LOG(G15/H15) -> -1.045881557 | L15: =G15-H15 -> -354 | N15: =F15-$F$40 -> -710 | O15: =F15-$F$52 -> -717 | P15: =F15-$F$78 -> -310
A16: Cnidaria | B16: CNIDARIA | C16: 12 | D16: =IF(E16<2,0,1) -> 1 | E16: 4 | F16: 5135 | G16: 9 | H16: 401 | I16: =G16/F16 -> 0.001752677702 | J16: =H16/F16 -> 0.07809152872 | K16: =LOG(G16/H16) -> -1.648901863 | L16: =G16-H16 -> -392 | N16: =F16-$F$40 -> -356 | O16: =F16-$F$52 -> -363 | P16: =F16-$F$78 -> 44
A17: Bilateria+Cnidaria | B17: EUMET | C17: 13 | D17: =IF(E17<2,0,1) -> 1 | E17: 5 | F17: 5527 | G17: 165 | H17: 54 | I17: =G17/F17 -> 0.02985344672 | J17: =H17/F17 -> 0.009770218925 | K17: =LOG(G17/H17) -> 0.4850901844 | L17: =G17-H17 -> 111 | N17: =F17-$F$40 -> 36 | O17: =F17-$F$52 -> 29 | P17: =F17-$F$78 -> 436
A18: Trichoplax | B18: Tadh | C18: 14 | D18: =IF(E18<2,0,1) -> 0 | E18: 1 | F18: 3997 | G18: 28 | H18: 1447 | I18: =G18/F18 -> 0.00700525394 | J18: =H18/F18 -> 0.3620215161 | K18: =LOG(G18/H18) -> -1.7133105 | L18: =G18-H18 -> -1419 | N18: =F18-$F$40 -> -1494 | O18: =F18-$F$52 -> -1501 | P18: =F18-$F$78 -> -1094
A19: Bilateria+Cnidaria+Placozoa | B19: EUMPLA | C19: 15 | D19: =IF(E19<2,0,1) -> 1 | E19: 6 | F19: 5416 | G19: 53 | H19: 194 | I19: =G19/F19 -> 0.009785819793 | J19: =H19/F19 -> 0.03581979321 | K19: =LOG(G19/H19) -> -0.5635258603 | L19: =G19-H19 -> -141 | N19: =F19-$F$40 -> -75 | O19: =F19-$F$52 -> -82 | P19: =F19-$F$78 -> 325
A20: Mnemiopsis leidyi | B20: Mlei | C20: 16 | D20: =IF(E20<2,0,1) -> 0 | E20: 1 | F20: 3585 | G20: 6 | H20: 1978 | I20: =G20/F20 -> 0.001673640167 | J20: =H20/F20 -> 0.5517433752 | K20: =LOG(G20/H20) -> -2.518075037 | L20: =G20-H20 -> -1972 | N20: =F20-$F$40 -> -1906 | O20: =F20-$F$52 -> -1913 | P20: =F20-$F$78 -> -1506
A21: Oscarella carmela | B21: Ocar | C21: 17 | D21: =IF(E21<2,0,1) -> 0 | E21: 1 | F21: 3325 | G21: 25 | H21: 1394 | I21: =G21/F21 -> 0.007518796992 | J21: =H21/F21 -> 0.4192481203 | K21: =LOG(G21/H21) -> -1.746322765 | L21: =G21-H21 -> -1369 | N21: =F21-$F$40 -> -2166 | O21: =F21-$F$52 -> -2173 | P21: =F21-$F$78 -> -1766
A22: Amphimedon queenslandica | B22: Aque | C22: 18 | D22: =IF(E22<2,0,1) -> 0 | E22: 1 | F22: 4351 | G22: 87 | H22: 430 | I22: =G22/F22 -> 0.01999540336 | J22: =H22/F22 -> 0.09882785567 | K22: =LOG(G22/H22) -> -0.693949203 | L22: =G22-H22 -> -343 | N22: =F22-$F$40 -> -1140 | O22: =F22-$F$52 -> -1147 | P22: =F22-$F$78 -> -740
A23: Porifera | B23: PORIFERA | C23: 19 | D23: =IF(E23<2,0,1) -> 1 | E23: 6 | F23: 4694 | G23: 7 | H23: 870 | I23: =G23/F23 -> 0.001491265445 | J23: =H23/F23 -> 0.1853429911 | K23: =LOG(G23/H23) -> -2.094421213 | L23: =G23-H23 -> -863 | N23: =F23-$F$40 -> -797 | O23: =F23-$F$52 -> -804 | P23: =F23-$F$78 -> -397
A24: Metazoa | B24: METAZOA | C24: 20 | D24: =IF(E24<2,0,1) -> 1 | E24: 7 | F24: 5557 | G24: 376 | H24: 149 | I24: =G24/F24 -> 0.06766240777 | J24: =H24/F24 -> 0.02681302861 | K24: =LOG(G24/H24) -> 0.4020015765 | L24: =G24-H24 -> 227 | N24: =F24-$F$40 -> 66 | O24: =F24-$F$52 -> 59 | P24: =F24-$F$78 -> 466
A25: Monosiga brevicollis | B25: Mbre | C25: 21 | D25: =IF(E25<2,0,1) -> 0 | E25: 1 | F25: 3308 | G25: 2 | H25: 651 | I25: =G25/F25 -> 0.0006045949214 | J25: =H25/F25 -> 0.1967956469 | K25: =LOG(G25/H25) -> -2.512550993 | L25: =G25-H25 -> -649 | N25: =F25-$F$40 -> -2183 | O25: =F25-$F$52 -> -2190 | P25: =F25-$F$78 -> -1783
A26: Salpingoeca rosetta | B26: Sros | C26: 22 | D26: =IF(E26<2,0,1) -> 0 | E26: 1 | F26: 3689 | G26: 11 | H26: 279 | I26: =G26/F26 -> 0.002981837896 | J26: =H26/F26 -> 0.0756302521 | K26: =LOG(G26/H26) -> -1.404211518 | L26: =G26-H26 -> -268 | N26: =F26-$F$40 -> -1802 | O26: =F26-$F$52 -> -1809 | P26: =F26-$F$78 -> -1402
A27: Choanoflagellata | B27: CHOANOS | C27: 23 | D27: =IF(E27<2,0,1) -> 1 | E27: 4 | F27: 3957 | G27: 3 | H27: 1376 | I27: =G27/F27 -> 0.0007581501137 | J27: =H27/F27 -> 0.3477381855 | K27: =LOG(G27/H27) -> -2.661497179 | L27: =G27-H27 -> -1373 | N27: =F27-$F$40 -> -1534 | O27: =F27-$F$52 -> -1541 | P27: =F27-$F$78 -> -1134
A28: Metazoa+Choanoflagellata | B28: CHOAZOA | C28: 24 | D28: =IF(E28<2,0,1) -> 1 | E28: 7 | F28: 5330 | G28: 61 | H28: 60 | I28: =G28/F28 -> 0.01144465291 | J28: =H28/F28 -> 0.01125703565 | K28: =LOG(G28/H28) -> 0.007178584627 | L28: =G28-H28 -> 1 | N28: =F28-$F$40 -> -161 | O28: =F28-$F$52 -> -168 | P28: =F28-$F$78 -> 239
A29: Capsaspora owczarzaki | B29: Cowc | C29: 25 | D29: =IF(E29<2,0,1) -> 0 | E29: 1 | F29: 3586 | G29: 6 | H29: 1749 | I29: =G29/F29 -> 0.001673173452 | J29: =H29/F29 -> 0.4877300613 | K29: =LOG(G29/H29) -> -2.464638559 | L29: =G29-H29 -> -1743 | N29: =F29-$F$40 -> -1905 | O29: =F29-$F$52 -> -1912 | P29: =F29-$F$78 -> -1505
A30: Filozoa (Met+Cho+Capsaspora) | B30: FILOZOA | C30: 26 | D30: =IF(E30<2,0,1) -> 1 | E30: 8 | F30: 5329 | G30: 45 | H30: 207 | I30: =G30/F30 -> 0.008444361043 | J30: =H30/F30 -> 0.0388440608 | K30: =LOG(G30/H30) -> -0.6627578317 | L30: =G30-H30 -> -162 | N30: =F30-$F$40 -> -162 | O30: =F30-$F$52 -> -169 | P30: =F30-$F$78 -> 238
A31: Sphaeroforma arctica | B31: Sarc | C31: 27 | D31: =IF(E31<2,0,1) -> 0 | E31: 1 | F31: 3292 | G31: 9 | H31: 419 | I31: =G31/F31 -> 0.002733900365 | J31: =H31/F31 -> 0.1272782503 | K31: =LOG(G31/H31) -> -1.667971514 | L31: =G31-H31 -> -410 | N31: =F31-$F$40 -> -2199 | O31: =F31-$F$52 -> -2206 | P31: =F31-$F$78 -> -1799
A32: Creolimax fragrantissima | B32: Cfra | C32: 28 | D32: =IF(E32<2,0,1) -> 0 | E32: 1 | F32: 3497 | G32: 6 | H32: 211 | I32: =G32/F32 -> 0.001715756363 | J32: =H32/F32 -> 0.06033743208 | K32: =LOG(G32/H32) -> -1.546131205 | L32: =G32-H32 -> -205 | N32: =F32-$F$40 -> -1994 | O32: =F32-$F$52 -> -2001 | P32: =F32-$F$78 -> -1594
A33: Sphaeroforma+Creolimax | B33: ICCFSA | C33: 29 | D33: =IF(E33<2,0,1) -> 1 | E33: 2 | F33: 3702 | G33: 6 | H33: 179 | I33: =G33/F33 -> 0.001620745543 | J33: =H33/F33 -> 0.04835224203 | K33: =LOG(G33/H33) -> -1.474701781 | L33: =G33-H33 -> -173 | N33: =F33-$F$40 -> -1789 | O33: =F33-$F$52 -> -1796 | P33: =F33-$F$78 -> -1389
A34: Ichthyophonus hoferi | B34: Ihof | C34: 30 | D34: =IF(E34<2,0,1) -> 0 | E34: 1 | F34: 2443 | G34: 1 | H34: 1433 | I34: =G34/F34 -> 0.0004093327876 | J34: =H34/F34 -> 0.5865738846 | K34: =LOG(G34/H34) -> -3.15624619 | L34: =G34-H34 -> -1432 | N34: =F34-$F$40 -> -3048 | O34: =F34-$F$52 -> -3055 | P34: =F34-$F$78 -> -2648
A35: Ichthyophonida | B35: ICHPHO | C35: 31 | D35: =IF(E35<2,0,1) -> 1 | E35: 3 | F35: 3875 | G35: 2 | H35: 606 | I35: =G35/F35 -> 0.0005161290323 | J35: =H35/F35 -> 0.1563870968 | K35: =LOG(G35/H35) -> -2.481442629 | L35: =G35-H35 -> -604 | N35: =F35-$F$40 -> -1616 | O35: =F35-$F$52 -> -1623 | P35: =F35-$F$78 -> -1216
A36: Chromosphaera perkinsii | B36: Nk52 | C36: 32 | D36: =IF(E36<2,0,1) -> 0 | E36: 1 | F36: 3802 | G36: 12 | H36: 689 | I36: =G36/F36 -> 0.003156233561 | J36: =H36/F36 -> 0.1812204103 | K36: =LOG(G36/H36) -> -1.759037976 | L36: =G36-H36 -> -677 | N36: =F36-$F$40 -> -1689 | O36: =F36-$F$52 -> -1696 | P36: =F36-$F$78 -> -1289
A37: Ichthyosporea | B37: ICHTHY | C37: 33 | D37: =IF(E37<2,0,1) -> 1 | E37: 4 | F37: 4479 | G37: 1 | H37: 134 | I37: =G37/F37 -> 0.0002232641215 | J37: =H37/F37 -> 0.02991739228 | K37: =LOG(G37/H37) -> -2.127104798 | L37: =G37-H37 -> -133 | N37: =F37-$F$40 -> -1012 | O37: =F37-$F$52 -> -1019 | P37: =F37-$F$78 -> -612
A38: Corallochytrium limacisporum | B38: Clim | C38: 34 | D38: =IF(E38<2,0,1) -> 0 | E38: 1 | F38: 3290 | G38: 9 | H38: 1331 | I38: =G38/F38 -> 0.00273556231 | J38: =H38/F38 -> 0.4045592705 | K38: =LOG(G38/H38) -> -2.169935546 | L38: =G38-H38 -> -1322 | N38: =F38-$F$40 -> -2201 | O38: =F38-$F$52 -> -2208 | P38: =F38-$F$78 -> -1801
A39: Teretosporea | B39: TERETO | C39: 35 | D39: =IF(E39<2,0,1) -> 1 | E39: 5 | F39: 4612 | G39: 4 | H39: 883 | I39: =G39/F39 -> 0.0008673026886 | J39: =H39/F39 -> 0.1914570685 | K39: =LOG(G39/H39) -> -2.343900712 | L39: =G39-H39 -> -879 | N39: =F39-$F$40 -> -879 | O39: =F39-$F$52 -> -886 | P39: =F39-$F$78 -> -479
A40: Holozoa | B40: HOLOZOA | C40: 36 | D40: =IF(E40<2,0,1) -> 1 | E40: 9 | F40: 5491 | G40: 154 | H40: 161 | I40: =G40/F40 -> 0.02804589328 | J40: =H40/F40 -> 0.02932070661 | K40: =LOG(G40/H40) -> -0.0193051552 | L40: =G40-H40 -> -7 | N40: =F40-$F$40 -> 0 | O40: =F40-$F$52 -> -7 | P40: =F40-$F$78 -> 400
A41: Schizosaccharomyces pombe | B41: Spom | C41: 37 | D41: =IF(E41<2,0,1) -> 0 | E41: 1 | F41: 3088 | G41: 38 | H41: 689 | I41: =G41/F41 -> 0.01230569948 | J41: =H41/F41 -> 0.2231217617 | K41: =LOG(G41/H41) -> -1.258435625 | L41: =G41-H41 -> -651 | O41: =F41-$F$52 -> -2410 | P41: =F41-$F$78 -> -2003
A42: Neurospora crassa | B42: Ncra | C42: 38 | D42: =IF(E42<2,0,1) -> 0 | E42: 1 | F42: 3622 | G42: 66 | H42: 183 | I42: =G42/F42 -> 0.01822197681 | J42: =H42/F42 -> 0.05052457206 | K42: =LOG(G42/H42) -> -0.4429071542 | L42: =G42-H42 -> -117 | O42: =F42-$F$52 -> -1876 | P42: =F42-$F$78 -> -1469
A43: Ascomycota | B43: ASCOMY | C43: 39 | D43: =IF(E43<2,0,1) -> 1 | E43: 2 | F43: 3739 | G43: 43 | H43: 121 | I43: =G43/F43 -> 0.01150040118 | J43: =H43/F43 -> 0.03236159401 | K43: =LOG(G43/H43) -> -0.4493169147 | L43: =G43-H43 -> -78 | O43: =F43-$F$52 -> -1759 | P43: =F43-$F$78 -> -1352
A44: Cryptococcus neoformans | B44: Cneo | C44: 40 | D44: =IF(E44<2,0,1) -> 0 | E44: 1 | F44: 3200 | G44: 8 | H44: 625 | I44: =G44/F44 -> 0.0025 | J44: =H44/F44 -> 0.1953125 | K44: =LOG(G44/H44) -> -1.89279003 | L44: =G44-H44 -> -617 | O44: =F44-$F$52 -> -2298 | P44: =F44-$F$78 -> -1891
A45: Dikarya | B45: DIKARYA | C45: 41 | D45: =IF(E45<2,0,1) -> 1 | E45: 3 | F45: 3817 | G45: 27 | H45: 734 | I45: =G45/F45 -> 0.007073618025 | J45: =H45/F45 -> 0.1922976159 | K45: =LOG(G45/H45) -> -1.434332296 | L45: =G45-H45 -> -707 | O45: =F45-$F$52 -> -1681 | P45: =F45-$F$78 -> -1274
A46: Mortierella verticillata | B46: Mver | C46: 42 | D46: =IF(E46<2,0,1) -> 0 | E46: 1 | F46: 3620 | G46: 15 | H46: 919 | I46: =G46/F46 -> 0.004143646409 | J46: =H46/F46 -> 0.2538674033 | K46: =LOG(G46/H46) -> -1.787224252 | L46: =G46-H46 -> -904 | O46: =F46-$F$52 -> -1878 | P46: =F46-$F$78 -> -1471
A47: Spizellomyces punctatus | B47: Spun | C47: 43 | D47: =IF(E47<2,0,1) -> 0 | E47: 1 | F47: 3709 | G47: 9 | H47: 824 | I47: =G47/F47 -> 0.002426530062 | J47: =H47/F47 -> 0.2221623079 | K47: =LOG(G47/H47) -> -1.961684702 | L47: =G47-H47 -> -815 | O47: =F47-$F$52 -> -1789 | P47: =F47-$F$78 -> -1382
A48: Gonapodya prolifera | B48: Gpro | C48: 44 | D48: =IF(E48<2,0,1) -> 0 | E48: 1 | F48: 3432 | G48: 7 | H48: 1099 | I48: =G48/F48 -> 0.00203962704 | J48: =H48/F48 -> 0.3202214452 | K48: =LOG(G48/H48) -> -2.195899652 | L48: =G48-H48 -> -1092 | O48: =F48-$F$52 -> -2066 | P48: =F48-$F$78 -> -1659
A49: Fungi | B49: FUNGI | C49: 45 | D49: =IF(E49<2,0,1) -> 1 | E49: 7 | F49: 4524 | G49: 104 | H49: 96 | I49: =G49/F49 -> 0.02298850575 | J49: =H49/F49 -> 0.02122015915 | K49: =LOG(G49/H49) -> 0.03476210626 | L49: =G49-H49 -> 8 | O49: =F49-$F$52 -> -974 | P49: =F49-$F$78 -> -567
A50: Fonticula alba | B50: Falb | C50: 46 | D50: =IF(E50<2,0,1) -> 0 | E50: 1 | F50: 2457 | G50: 1 | H50: 2060 | I50: =G50/F50 -> 0.000407000407 | J50: =H50/F50 -> 0.8384208384 | K50: =LOG(G50/H50) -> -3.31386722 | L50: =G50-H50 -> -2059 | O50: =F50-$F$52 -> -3041 | P50: =F50-$F$78 -> -2634
A51: Holomycota | B51: HOLOMYC | C51: 47 | D51: =IF(E51<2,0,1) -> 1 | E51: 8 | F51: 4516 | G51: 5 | H51: 987 | I51: =G51/F51 -> 0.001107174491 | J51: =H51/F51 -> 0.2185562445 | K51: =LOG(G51/H51) -> -2.295347148 | L51: =G51-H51 -> -982 | O51: =F51-$F$52 -> -982 | P51: =F51-$F$78 -> -575
A52: Opisthokinta | B52: OPISTO | C52: 48 | D52: =IF(E52<2,0,1) -> 1 | E52: 10 | F52: 5498 | G52: 219 | H52: 25 | I52: =G52/F52 -> 0.03983266642 | J52: =H52/F52 -> 0.004547108039 | K52: =LOG(G52/H52) -> 0.9425041062 | L52: =G52-H52 -> 194 | O52: =F52-$F$52 -> 0 | P52: =F52-$F$78 -> 407
A53: Thecamonas trahens | B53: Ttra | C53: 49 | D53: =IF(E53<2,0,1) -> 0 | E53: 1 | F53: 3323 | G53: 23 | H53: 2004 | I53: =G53/F53 -> 0.006921456515 | J53: =H53/F53 -> 0.6030695155 | K53: =LOG(G53/H53) -> -1.940169881 | L53: =G53-H53 -> -1981 | P53: =F53-$F$78 -> -1768
A54: Obazoa (Opistho+Apusomonadida) | B54: OBAZOA | C54: 50 | D54: =IF(E54<2,0,1) -> 1 | E54: 11 | F54: 5304 | G54: 58 | H54: 42 | I54: =G54/F54 -> 0.01093514329 | J54: =H54/F54 -> 0.007918552036 | K54: =LOG(G54/H54) -> 0.1401787032 | L54: =G54-H54 -> 16 | P54: =F54-$F$78 -> 213
A55: Dictyostelium discoideum | B55: Ddis | C55: 51 | D55: =IF(E55<2,0,1) -> 0 | E55: 1 | F55: 3308 | G55: 15 | H55: 195 | I55: =G55/F55 -> 0.004534461911 | J55: =H55/F55 -> 0.05894800484 | K55: =LOG(G55/H55) -> -1.113943352 | L55: =G55-H55 -> -180 | P55: =F55-$F$78 -> -1783
A56: Polysphondylium pallidum | B56: Ppal | C56: 52 | D56: =IF(E56<2,0,1) -> 0 | E56: 1 | F56: 3286 | G56: 9 | H56: 211 | I56: =G56/F56 -> 0.00273889227 | J56: =H56/F56 -> 0.06421180767 | K56: =LOG(G56/H56) -> -1.370039946 | L56: =G56-H56 -> -202 | P56: =F56-$F$78 -> -1805
A57: Dictyostelia | B57: DICTYOS | C57: 53 | D57: =IF(E57<2,0,1) -> 1 | E57: 2 | F57: 3488 | G57: 13 | H57: 604 | I57: =G57/F57 -> 0.00372706422 | J57: =H57/F57 -> 0.1731651376 | K57: =LOG(G57/H57) -> -1.667093586 | L57: =G57-H57 -> -591 | P57: =F57-$F$78 -> -1603
A58: Acanthamoeba castellanii | B58: Acas | C58: 54 | D58: =IF(E58<2,0,1) -> 0 | E58: 1 | F58: 3414 | G58: 17 | H58: 682 | I58: =G58/F58 -> 0.004979496192 | J58: =H58/F58 -> 0.1997656708 | K58: =LOG(G58/H58) -> -1.603335453 | L58: =G58-H58 -> -665 | P58: =F58-$F$78 -> -1677
A59: Amoebozoa | B59: AMOEBO | C59: 55 | D59: =IF(E59<2,0,1) -> 1 | E59: 5 | F59: 4079 | G59: 6 | H59: 1215 | I59: =G59/F59 -> 0.001470948762 | J59: =H59/F59 -> 0.2978671243 | K59: =LOG(G59/H59) -> -2.306425028 | L59: =G59-H59 -> -1209 | P59: =F59-$F$78 -> -1012
A60: Unikonta/Amorphea | B60: UNIK | C60: 56 | D60: =IF(E60<2,0,1) -> 1 | E60: 12 | F60: 5288 | G60: 208 | H60: 11 | I60: =G60/F60 -> 0.03933434191 | J60: =H60/F60 -> 0.002080181543 | K60: =LOG(G60/H60) -> 1.27667065 | L60: =G60-H60 -> 197 | P60: =F60-$F$78 -> 197
A61: Arabidopsis thaliana | B61: Atha | C61: 57 | D61: =IF(E61<2,0,1) -> 0 | E61: 1 | F61: 4013 | G61: 106 | H61: 364 | I61: =G61/F61 -> 0.026414154 | J61: =H61/F61 -> 0.09070520807 | K61: =LOG(G61/H61) -> -0.5357955184 | L61: =G61-H61 -> -258 | P61: =F61-$F$78 -> -1078
A62: Physcomitrella patens | B62: Ppat | C62: 58 | D62: =IF(E62<2,0,1) -> 0 | E62: 1 | F62: 4161 | G62: 72 | H62: 182 | I62: =G62/F62 -> 0.0173035328 | J62: =H62/F62 -> 0.0437394857 | K62: =LOG(G62/H62) -> -0.4027388916 | L62: =G62-H62 -> -110 | P62: =F62-$F$78 -> -930
A63: Embryophyta/Land plants | B63: EMBPHY | C63: 59 | D63: =IF(E63<2,0,1) -> 1 | E63: 4 | F63: 4271 | G63: 163 | H63: 407 | I63: =G63/F63 -> 0.03816436432 | J63: =H63/F63 -> 0.09529384219 | K63: =LOG(G63/H63) -> -0.3974068048 | L63: =G63-H63 -> -244 | P63: =F63-$F$78 -> -820
A64: Chlamydomonas reinhardtii | B64: Crei | C64: 60 | D64: =IF(E64<2,0,1) -> 0 | E64: 1 | F64: 3297 | G64: 19 | H64: 544 | I64: =G64/F64 -> 0.00576281468 | J64: =H64/F64 -> 0.1649984835 | K64: =LOG(G64/H64) -> -1.456845299 | L64: =G64-H64 -> -525 | P64: =F64-$F$78 -> -1794
A65: Chlorella variabilis | B65: Cvar | C65: 61 | D65: =IF(E65<2,0,1) -> 0 | E65: 1 | F65: 3344 | G65: 9 | H65: 487 | I65: =G65/F65 -> 0.00269138756 | J65: =H65/F65 -> 0.1456339713 | K65: =LOG(G65/H65) -> -1.733286452 | L65: =G65-H65 -> -478 | P65: =F65-$F$78 -> -1747
A66: Chlorophyta | B66: CHLORO | C66: 62 | D66: =IF(E66<2,0,1) -> 1 | E66: 4 | F66: 3822 | G66: 4 | H66: 697 | I66: =G66/F66 -> 0.001046572475 | J66: =H66/F66 -> 0.1823652538 | K66: =LOG(G66/H66) -> -2.241172787 | L66: =G66-H66 -> -693 | P66: =F66-$F$78 -> -1269
A67: Viridiplantae | B67: VIRIDI | C67: 63 | D67: =IF(E67<2,0,1) -> 1 | E67: 5 | F67: 4515 | G67: 88 | H67: 691 | I67: =G67/F67 -> 0.01949058693 | J67: =H67/F67 -> 0.1530454042 | K67: =LOG(G67/H67) -> -0.8949953752 | L67: =G67-H67 -> -603 | P67: =F67-$F$78 -> -576
A68: Toxoplasma gondii | B68: Tgon | C68: 64 | D68: =IF(E68<2,0,1) -> 0 | E68: 1 | F68: 2278 | G68: 15 | H68: 763 | I68: =G68/F68 -> 0.006584723442 | J68: =H68/F68 -> 0.3349429324 | K68: =LOG(G68/H68) -> -1.706433279 | L68: =G68-H68 -> -748 | P68: =F68-$F$78 -> -2813
A69: Tetrahymena thermophila | B69: Tthe | C69: 65 | D69: =IF(E69<2,0,1) -> 0 | E69: 1 | F69: 2572 | G69: 15 | H69: 469 | I69: =G69/F69 -> 0.005832037325 | J69: =H69/F69 -> 0.182348367 | K69: =LOG(G69/H69) -> -1.495081584 | L69: =G69-H69 -> -454 | P69: =F69-$F$78 -> -2519
A70: Alveolata | B70: ALVEO | C70: 66 | D70: =IF(E70<2,0,1) -> 1 | E70: 5 | F70: 3026 | G70: 0 | H70: 1583 | I70: =G70/F70 -> 0 | J70: =H70/F70 -> 0.5231328486 | K70: =LOG(G70/H70) ->  | L70: =G70-H70 -> -1583 | P70: =F70-$F$78 -> -2065
A71: Bigelowiella natans | B71: Bnat | C71: 67 | D71: =IF(E71<2,0,1) -> 0 | E71: 1 | F71: 3644 | G71: 39 | H71: 1004 | I71: =G71/F71 -> 0.0107025247 | J71: =H71/F71 -> 0.275521405 | K71: =LOG(G71/H71) -> -1.410669106 | L71: =G71-H71 -> -965 | P71: =F71-$F$78 -> -1447
A72: Ectocarpus siliculosus | B72: Esil | C72: 68 | D72: =IF(E72<2,0,1) -> 0 | E72: 1 | F72: 3454 | G72: 11 | H72: 563 | I72: =G72/F72 -> 0.003184713376 | J72: =H72/F72 -> 0.162999421 | K72: =LOG(G72/H72) -> -1.70911571 | L72: =G72-H72 -> -552 | P72: =F72-$F$78 -> -1637
A73: Phytophthora infestans | B73: Pinf | C73: 69 | D73: =IF(E73<2,0,1) -> 0 | E73: 1 | F73: 3376 | G73: 10 | H73: 640 | I73: =G73/F73 -> 0.002962085308 | J73: =H73/F73 -> 0.1895734597 | K73: =LOG(G73/H73) -> -1.806179974 | L73: =G73-H73 -> -630 | P73: =F73-$F$78 -> -1715
A74: Stramenopila/Heterokonta | B74: STRAM | C74: 70 | D74: =IF(E74<2,0,1) -> 1 | E74: 5 | F74: 4006 | G74: 1 | H74: 604 | I74: =G74/F74 -> 0.0002496255617 | J74: =H74/F74 -> 0.1507738392 | K74: =LOG(G74/H74) -> -2.781036939 | L74: =G74-H74 -> -603 | P74: =F74-$F$78 -> -1085
A75: SAR (Stram+Alveolata+Rhizaria) | B75: SAR | C75: 71 | D75: =IF(E75<2,0,1) -> 1 | E75: 6 | F75: 4609 | G75: 3 | H75: 512 | I75: =G75/F75 -> 0.0006509004122 | J75: =H75/F75 -> 0.1110870037 | K75: =LOG(G75/H75) -> -2.232148706 | L75: =G75-H75 -> -509 | P75: =F75-$F$78 -> -482
A76: Bikonta/Diaphoratickes | B76: BIKONT | C76: 72 | D76: =IF(E76<2,0,1) -> 1 | E76: 12 | F76: 5118 | G76: 140 | H76: 113 | I76: =G76/F76 -> 0.02735443533 | J76: =H76/F76 -> 0.02207893708 | K76: =LOG(G76/H76) -> 0.09304959219 | L76: =G76-H76 -> 27 | P76: =F76-$F$78 -> 27
A77: Naegleria gruberi | B77: Ngru | C77: 73 | D77: =IF(E77<2,0,1) -> 0 | E77: 1 | F77: 3055 | G77: 29 | H77: 2065 | I77: =G77/F77 -> 0.009492635025 | J77: =H77/F77 -> 0.6759410802 | K77: =LOG(G77/H77) -> -1.852522058 | L77: =G77-H77 -> -2036 | P77: =F77-$F$78 -> -2036
A78: Ancestral eukaryote (root) | B78: LECA | C78: 74 | D78: =IF(E78<2,0,1) -> 1 | E78: 13 | F78: 5091 | G78: NA | H78: NA | I78: =G78/F78 ->  | J78: =H78/F78 -> 
